bitfinex/quotes_ETHUSD_20250622
["timestamp","ask_amount","ask_price","bid_price","bid_amount"]
[1750630075860,0.005,2221.7,2221.6,9.98331488]
[1750630076023,0.005,2221.7,2221.6,34.60357523]
[1750630076195,1.5563,2222.6,2222.1,4.50019829]
[1750630076552,1.5648,2223.0,2222.4,10.0]
[1750630076727,0.2404517,2223.1,2222.5,19.53931488]
[1750630077043,0.2404517,2223.1,2222.3,10.0]
[1750630077336,0.2404517,2223.1,2222.2,9.98331488]
[1750630077337,0.2404517,2223.1,2222.2,10.0]
[1750630077551,1.5843,2223.0,2222.1,10.0]
[1750630077706,1.5843,2223.0,2221.7,1.6278]
[1750630077707,0.0568,2222.9,2221.7,10.0]
[1750630078298,0.2404517,2223.1,2222.3,9.98331488]
[1750630079097,0.2404517,2223.1,2222.8,10.0]
[1750630079618,0.2404517,2223.1,2222.0,9.98331488]
[1750630079796,0.0568,2222.9,2221.8,4.50080668]
[1750630079995,1.6572,2223.0,2222.2,10.0]
[1750630080527,1.6572,2223.0,2222.0,0.6]
[1750630080693,1.6572,2223.0,2221.0,4.95279029]
[1750630080694,10.8748,2222.9,2221.0,2.06206561]
[1750630080896,0.0568,2222.5,2221.3,4.50169491]
[1750630081149,0.0568,2222.5,2221.4,4.54650638]
[1750630081312,0.0568,2222.5,2221.1,9.98331488]
[1750630081511,0.18967833,2223.1,2223.0,4.49842555]
[1750630081830,0.91611917,2225.5,2223.0,4.49842555]
[1750630081831,1.2185011,2227.8,2223.7,10.0]
[1750630082025,0.071271,2227.8,2227.1,9.98331488]
[1750630082241,0.071271,2227.8,2227.6,10.0]
[1750630082441,1.02449707,2229.6,2228.9,4.48651801]
[1750630082789,1.05546218,2230.7,2229.0,10.0]
[1750630082896,1.05546218,2230.7,2229.2,10.0]
[1750630083096,2.91403133,2230.1,2228.9,0.45016018]
[1750630083345,13.78683133,2230.1,2229.0,0.04485775]
[1750630083550,13.73003133,2230.1,2228.9,0.04484717]
[1750630083847,0.0568,2229.2,2227.7,0.55]
[1750630084061,12.09643133,2230.1,2227.7,0.55]
[1750630084062,1.6336,2228.8,2227.7,0.55]
[1750630084344,0.0568,2228.7,2226.5,0.44186895]
[1750630084496,0.0568,2228.6,2226.2,11.70872998]
[1750630084698,1.6336,2228.5,2226.3,10.0]
[1750630084898,1.2901509,2229.2,2227.3,10.12542998]
[1750630085097,18.0,2228.5,2228.3,4.48752871]
[1750630085310,1.2901509,2229.2,2227.9,10.0]
[1750630085540,1.2901509,2229.2,2228.0,0.04486544]
[1750630085912,1.03997963,2230.1,2228.8,10.12542998]
[1750630086240,3.72656,2230.0,2228.9,10.04485629]
[1750630086448,0.0568,2229.9,2228.2,4.48780092]
[1750630086601,3.72656,2230.0,2227.6,1.5922]
[1750630086602,0.0568,2229.7,2227.6,1.5922]
[1750630086928,0.0568,2229.7,2226.3,5.84180691]
[1750630086929,1.633,2229.4,2227.0,1.5922]
[1750630087232,1.633,2229.0,2226.4,0.0019]
[1750630087417,9.888,2228.9,2226.3,5.84184371]
[1750630087622,1.633,2228.7,2226.4,0.04490394]
[1750630087846,1.633,2228.7,2226.2,4.49195939]
[1750630087847,1.633,2228.6,2226.2,4.49195939]
[1750630088022,1.633,2228.6,2226.1,0.0019]
[1750630088023,1.633,2228.6,2226.4,1.349843]
[1750630088208,1.633,2228.4,2226.1,0.0019]
[1750630088413,9.887,2228.3,2226.1,1.351862]
[1750630088610,10.0,2228.2,2226.1,1.351862]
[1750630088811,10.0,2228.0,2226.1,1.349962]
[1750630089010,2.28351828,2228.6,2226.2,0.04492557]
[1750630089011,1.633,2227.8,2226.2,0.04492557]
[1750630089241,1.633,2227.8,2226.1,1.349962]
[1750630089448,1.633,2227.8,2225.7,0.0019]
[1750630089662,1.633,2227.8,2226.0,1.349962]
[1750630089955,1.633,2227.8,2225.7,0.0019]
[1750630090116,1.633,2227.8,2225.7,1.39712765]
[1750630090304,9.875,2227.7,2225.7,1.352214]
[1750630090505,12.3742,2227.6,2225.7,1.352214]
[1750630090703,1.636,2227.4,2225.2,0.0019]
[1750630090958,0.0568,2227.1,2225.2,0.0019]
[1750630091316,0.0568,2227.1,2225.3,4.49375624]
[1750630091513,1.5814,2227.9,2225.9,10.12542998]
[1750630091742,1.5814,2227.9,2226.6,10.0019]
[1750630092027,1.5814,2227.9,2226.6,0.0019]
[1750630092236,1.5814,2227.9,2226.6,4.49301427]
[1750630092539,1.5814,2227.9,2226.6,4.49292978]
[1750630092707,1.5814,2227.9,2226.6,0.0019]
[1750630092907,1.6382,2227.9,2225.7,0.0019]
[1750630093107,1.5814,2227.9,2226.1,10.0019]
[1750630093333,1.5814,2227.9,2226.3,0.0019]
[1750630093533,1.5814,2227.9,2226.8,10.0]
[1750630093841,1.5814,2227.9,2226.2,0.0019]
[1750630094243,1.6417,2227.9,2226.2,4.49382841]
[1750630094927,1.6417,2227.9,2226.2,0.0019]
[1750630095309,1.6417,2227.9,2226.4,0.6]
[1750630095505,1.6417,2227.9,2226.4,0.595]
[1750630096039,1.6417,2227.9,2226.5,0.0449002]
[1750630096248,1.6417,2227.9,2226.6,0.04489959]
[1750630096413,1.6417,2227.9,2226.4,1.944835]
[1750630096607,1.6417,2227.9,2226.5,0.04489777]
[1750630096905,1.6417,2227.9,2226.4,1.944835]
[1750630097123,1.6417,2227.9,2226.5,0.04490201]
[1750630097336,1.6417,2227.9,2226.4,10.595]
[1750630097643,1.5814,2227.9,2227.0,10.0]
[1750630097829,1.5814,2227.9,2227.3,0.0019]
[1750630098031,1.5838,2228.7,2227.9,4.4884869]
[1750630098225,0.0603,2229.5,2228.1,0.0019]
[1750630098419,0.0603,2229.5,2227.6,0.0019]
[1750630098420,1.5625,2229.4,2227.6,0.0019]
[1750630098621,1.5625,2229.2,2227.1,0.0019]
[1750630098823,1.5625,2229.0,2227.2,10.0]
[1750630099026,1.5625,2229.0,2227.1,0.0019]
[1750630099212,1.5625,2229.0,2227.1,0.04678323]
[1750630099412,1.5625,2229.0,2227.1,0.0019]
[1750630099645,0.6103,2228.9,2227.1,0.0019]
[1750630099943,0.55,2228.5,2226.6,0.0019]
[1750630100144,0.55,2228.1,2226.0,0.0019]
[1750630100441,1.5672,2227.5,2226.0,1.35011]
[1750630100629,0.0603,2226.9,2224.9,0.0019]
[1750630100817,1.5621,2226.7,2224.9,1.352707]
[1750630101024,1.5121,2226.7,2225.2,10.0]
[1750630101213,1.5121,2226.7,2225.1,10.0]
[1750630101551,1.5121,2226.7,2225.2,0.42007639]
[1750630101769,1.5121,2226.7,2225.4,0.0608]
[1750630101913,1.5121,2226.7,2225.8,4.49273709]
[1750630102110,1.5121,2226.7,2225.5,0.3750989]
[1750630102313,1.5121,2226.7,2225.9,0.37503149]
[1750630102765,1.5121,2226.7,2226.1,10.0]
[1750630103049,10.792,2227.8,2226.9,10.0]
[1750630103356,10.792,2227.8,2227.0,0.04489179]
[1750630103563,10.792,2227.8,2227.1,0.55]
[1750630103851,10.792,2227.8,2227.1,4.49001095]
[1750630104052,10.792,2227.8,2227.2,0.04488608]
[1750630104416,10.792,2227.8,2227.1,4.48999243]
[1750630104739,1.5327,2228.5,2227.5,0.0608]
[1750630105550,1.5327,2228.5,2227.6,0.55]
[1750630105754,1.5327,2228.5,2227.7,10.0]
[1750630106042,1.5327,2228.5,2227.6,4.48908438]
[1750630106257,1.5327,2228.5,2227.7,0.04487553]
[1750630106552,1.5327,2228.5,2227.5,4.5499693]
[1750630106762,1.5327,2228.5,2227.9,10.0]
[1750630106960,1.5327,2228.5,2228.0,0.04487454]
[1750630107258,1.5327,2228.5,2227.8,10.0]
[1750630107463,1.5327,2228.5,2228.1,10.0]
[1750630107627,1.5363,2228.9,2228.2,0.04487611]
[1750630107955,1.5363,2228.9,2228.0,10.0]
[1750630108121,1.5363,2228.9,2227.8,10.0]
[1750630108321,1.5363,2228.9,2228.0,4.48832574]
[1750630108545,1.5363,2228.9,2228.1,0.04486828]
[1750630108762,1.5363,2228.9,2227.5,0.0389]
[1750630108965,1.5363,2228.9,2227.9,10.0]
[1750630109171,1.5363,2228.9,2228.0,14.48818919]
[1750630109355,1.5363,2228.9,2227.9,10.0]
[1750630109541,1.5363,2228.9,2228.1,10.0]
[1750630109723,1.5363,2228.9,2227.6,0.55]
[1750630109924,1.5363,2228.9,2227.8,10.0]
[1750630110122,1.5363,2228.9,2227.9,0.04487414]
[1750630110322,1.5363,2228.9,2228.3,10.0]
[1750630110559,1.5363,2228.9,2227.7,0.6]
[1750630110768,1.5363,2228.9,2227.9,10.0]
[1750630110965,1.5363,2228.9,2227.6,0.55]
[1750630111171,1.5363,2228.9,2227.7,10.80421421]
[1750630111463,1.5363,2228.9,2228.4,10.0]
[1750630111666,1.5363,2228.9,2228.6,10.0]
[1750630111831,1.5363,2228.9,2228.7,0.80389951]
[1750630112167,1.6269,2229.4,2228.8,0.4017448]
[1750630112349,1.6269,2229.4,2227.9,1.5061]
[1750630112350,1.6269,2229.4,2228.5,0.4017448]
[1750630112548,1.6269,2229.4,2228.5,10.0]
[1750630112748,1.6269,2229.4,2228.7,10.0]
[1750630112951,1.6269,2229.4,2228.8,0.40174418]
[1750630113138,1.6269,2229.4,2228.5,0.64277796]
[1750630113337,1.6269,2229.4,2228.6,0.40174418]
[1750630113564,1.6269,2229.4,2228.4,0.40183496]
[1750630113866,1.6269,2229.4,2228.5,0.04486795]
[1750630114482,1.6269,2229.4,2228.8,10.0]
[1750630114644,1.6269,2229.4,2228.9,0.40197508]
[1750630114847,1.6648,2229.9,2229.2,10.0]
[1750630115144,1.6648,2229.9,2229.0,10.0608]
[1750630115383,1.6648,2229.9,2229.1,0.40132603]
[1750630115542,1.6648,2229.9,2228.7,1.04408558]
[1750630115742,1.6648,2229.9,2228.9,10.0]
[1750630115953,1.6648,2229.9,2229.0,0.80318934]
[1750630116157,1.7251,2229.9,2228.6,0.40159467]
[1750630116352,1.7251,2229.9,2228.5,0.0608]
[1750630116353,1.7251,2229.9,2228.7,0.40159467]
[1750630116557,1.7251,2229.9,2228.6,5.57592295]
[1750630116759,1.7251,2229.9,2228.8,0.04486254]
[1750630117045,1.6648,2229.9,2228.8,0.40155741]
[1750630117243,1.6648,2229.9,2228.8,0.40159474]
[1750630117539,1.6648,2229.9,2228.8,0.0448581]
[1750630117785,1.6648,2229.9,2228.5,0.70343665]
[1750630118086,1.6648,2229.9,2228.6,0.0448581]
[1750630118240,1.6648,2229.9,2228.6,1.19263665]
[1750630118569,1.6648,2229.9,2228.8,10.0]
[1750630118780,1.6648,2229.9,2228.7,10.0]
[1750630119075,1.6648,2229.9,2228.5,11.409427]
[1750630119292,0.0603,2229.8,2228.6,5.12924318]
[1750630119454,0.0603,2229.8,2228.7,10.04485909]
[1750630119795,0.0603,2229.8,2228.4,1.348663]
[1750630119994,0.0603,2229.8,2228.4,0.64235215]
[1750630120200,0.0603,2229.6,2228.4,1.348669]
[1750630120493,10.30616752,2229.9,2228.4,1.348669]
[1750630120494,1.5065,2229.1,2228.4,1.348669]
[1750630120675,1.5065,2229.1,2227.3,5.53472006]
[1750630120985,1.5065,2229.1,2227.4,5.5953536]
[1750630121147,1.5065,2229.1,2227.7,0.0608]
[1750630121341,1.5065,2229.1,2228.4,10.0]
[1750630121547,1.5065,2229.1,2228.6,10.0]
[1750630121754,1.5065,2229.1,2228.3,0.0608]
[1750630122090,1.5065,2229.1,2228.3,0.34670949]
[1750630122277,1.5065,2229.1,2228.4,14.48738824]
[1750630122475,1.5065,2229.1,2228.7,0.0608]
[1750630122668,1.5065,2229.1,2228.2,11.409603]
[1750630122865,1.5065,2229.1,2228.3,0.40151491]
[1750630123066,1.5065,2229.1,2228.2,15.89746181]
[1750630123067,1.5065,2229.1,2228.2,0.0608]
[1750630123266,1.5065,2229.1,2228.0,1.348948]
[1750630123589,1.5065,2229.1,2227.7,0.0608]
[1750630123590,1.5065,2229.1,2227.8,4.48873327]
[1750630123756,1.5065,2229.1,2227.7,0.46270253]
[1750630123963,1.5065,2229.1,2227.8,4.48860181]
[1750630124195,1.5065,2229.1,2228.0,10.0]
[1750630124372,1.5065,2229.1,2227.7,1.409869]
[1750630124771,0.0603,2229.3,2227.4,0.80402716]
[1750630124772,1.5497,2228.9,2227.4,0.80402716]
[1750630124958,1.5497,2228.9,2227.5,0.04488406]
[1750630125299,1.5525,2228.8,2227.5,0.04488406]
[1750630125703,1.5525,2228.6,2227.2,0.40201334]
[1750630126009,1.5525,2228.6,2227.1,2.15355103]
[1750630126212,1.5525,2228.6,2227.1,0.2657227]
[1750630126414,1.5525,2228.6,2227.1,10.0]
[1750630126615,1.5525,2228.6,2227.4,10.0]
[1750630126764,1.5525,2228.6,2227.5,0.04488789]
[1750630126961,1.5525,2228.6,2227.6,10.0]
[1750630127167,1.5525,2228.6,2227.7,0.04487762]
[1750630127425,1.5525,2228.6,2227.5,0.0474]
[1750630127562,1.5525,2228.6,2227.5,0.40208054]
[1750630127766,1.5525,2228.6,2227.6,0.04488747]
[1750630128062,1.5525,2228.6,2227.3,0.6]
[1750630128287,1.5525,2228.6,2227.7,10.30616752]
[1750630128463,9.469,2229.6,2228.4,10.0474]
[1750630128666,1.5563,2229.3,2227.8,10.0]
[1750630129003,1.5563,2229.1,2227.5,10.0474]
[1750630129367,1.5563,2229.1,2227.7,10.0]
[1750630129566,1.5162,2228.9,2227.1,0.0474]
[1750630129878,1.5162,2228.7,2227.1,0.0474]
[1750630130066,1.5738,2228.5,2227.1,0.0474]
[1750630130270,11.0288,2228.5,2227.1,0.0474]
[1750630130465,1.6547,2228.4,2226.9,0.40212497]
[1750630130696,1.6547,2228.2,2226.6,0.0474]
[1750630130898,1.6547,2228.2,2226.8,4.49060115]
[1750630131099,1.6547,2228.2,2227.0,10.0]
[1750630131285,1.6547,2228.2,2227.1,0.04489675]
[1750630131701,1.6547,2228.2,2226.9,0.4482898]
[1750630132106,1.6547,2228.2,2227.1,10.0]
[1750630132315,1.6547,2228.2,2227.4,10.0]
[1750630132604,1.6547,2228.2,2226.6,16.19436455]
[1750630132605,1.6547,2228.2,2227.5,0.44945146]
[1750630132808,1.6547,2228.2,2227.5,0.04488987]
[1750630133292,1.6547,2228.2,2227.3,0.80895115]
[1750630133493,1.6547,2228.2,2227.2,0.8090493]
[1750630133809,1.7123,2228.2,2227.0,0.85415965]
[1750630133992,1.7123,2228.2,2227.1,0.04489268]
[1750630134195,1.7123,2228.2,2227.0,1.09695373]
[1750630134705,0.0576,2228.1,2226.8,0.40470702]
[1750630134906,1.5211,2228.0,2227.0,4.49021702]
[1750630135212,1.5211,2228.0,2227.1,0.04489509]
[1750630135704,1.5211,2228.0,2227.0,10.0]
[1750630135908,1.5211,2228.0,2227.1,0.40419434]
[1750630136109,1.5787,2228.0,2226.9,10.64677209]
[1750630136410,1.5787,2228.0,2227.0,0.69166545]
[1750630136721,1.5211,2228.0,2227.1,0.0596]
[1750630136928,1.5211,2228.0,2227.2,10.0]
[1750630137085,1.5211,2228.0,2227.3,0.28734315]
[1750630137280,1.5211,2228.0,2227.3,0.28981075]
[1750630137607,1.5211,2228.0,2227.3,0.0474]
[1750630137806,1.5211,2228.0,2227.4,10.0]
[1750630138021,1.5211,2228.0,2227.3,10.0474]
[1750630138390,1.5211,2228.0,2227.3,0.0474]
[1750630138737,1.5211,2228.0,2227.3,0.2897482]
[1750630139016,1.5211,2228.0,2226.8,0.0474]
[1750630139221,0.0576,2227.9,2226.7,0.24240603]
[1750630139425,0.0576,2227.9,2226.6,4.49100349]
[1750630139726,1.5154,2227.8,2226.6,0.24252865]
[1750630139895,1.5154,2227.8,2226.7,4.49083161]
[1750630140085,1.5154,2227.8,2226.6,4.49101559]
[1750630140287,1.592,2227.4,2226.4,5.84128311]
[1750630140484,1.592,2227.4,2226.5,0.04491435]
[1750630140809,1.592,2227.4,2225.9,0.24242441]
[1750630140810,1.592,2227.2,2225.9,0.24242441]
[1750630140988,1.592,2227.2,2225.8,0.24242441]
[1750630141188,1.592,2227.2,2225.7,1.39727]
[1750630141389,1.592,2227.2,2225.3,10.942]
[1750630141390,1.5619,2226.9,2225.2,0.0474]
[1750630141592,0.0576,2226.6,2225.3,0.37513261]
[1750630141794,1.5619,2226.5,2225.3,0.37513261]
[1750630142319,1.5619,2226.5,2225.4,0.04492768]
[1750630143023,1.5619,2226.5,2225.2,0.0474]
[1750630143227,1.5536,2226.2,2224.5,0.45010682]
[1750630143433,1.5536,2225.0,2223.7,0.0596]
[1750630143617,1.5536,2225.0,2223.4,10.30616752]
[1750630143618,1.5536,2225.9,2225.3,10.0]
[1750630143924,1.5536,2225.9,2225.1,0.0596]
[1750630144108,1.5536,2225.9,2225.2,0.04492764]
[1750630144109,0.0576,2225.8,2225.2,0.04492764]
[1750630144326,0.0576,2225.8,2223.7,4.49694692]
[1750630144327,0.0576,2225.3,2223.9,0.44754301]
[1750630144542,1.5536,2225.2,2224.3,0.0596]
[1750630144746,1.5536,2225.2,2224.7,10.0]
[1750630144935,1.5536,2225.2,2224.4,10.0]
[1750630145104,1.5536,2225.2,2224.4,14.49556607]
[1750630145309,1.5536,2225.2,2224.5,0.04494678]
[1750630145549,1.5536,2225.2,2224.5,10.04494421]
[1750630145842,1.6112,2225.2,2223.8,10.30616752]
[1750630146006,0.0576,2225.1,2223.3,4.49763623]
[1750630146206,1.5968,2225.0,2223.4,4.49747092]
[1750630146406,1.5201,2224.6,2223.2,4.55744394]
[1750630146611,1.5201,2224.6,2223.3,4.49781855]
[1750630146807,1.5201,2224.6,2223.2,0.0596]
[1750630147022,1.5201,2224.6,2223.4,4.49759029]
[1750630147239,1.5201,2224.6,2223.5,0.04496646]
[1750630147413,0.29042856,2224.5,2223.4,18.0]
[1750630147616,1.5636,2224.4,2223.4,18.0]
[1750630147818,1.5636,2224.2,2223.4,18.0]
[1750630148020,0.23357687,2224.1,2223.5,10.0]
[1750630148941,0.23357687,2224.1,2223.6,4.58979259]
[1750630149146,0.23357687,2224.1,2223.6,0.0477]
[1750630149332,0.23357687,2224.1,2223.6,0.09266056]
[1750630149643,0.23357687,2224.1,2223.6,10.0]
[1750630149943,0.23357687,2224.1,2223.2,0.0477]
[1750630150143,0.23357687,2224.1,2222.8,0.0477]
[1750630150457,1.5119,2224.0,2222.8,0.04497457]
[1750630150616,0.23431771,2223.9,2222.8,0.04497457]
[1750630150810,0.0576,2223.7,2222.6,0.0479233]
[1750630151139,1.84181771,2223.6,2222.6,0.0479233]
[1750630151340,4.687,2223.5,2222.6,0.0479233]
[1750630151531,0.23505315,2223.4,2222.6,0.09290752]
[1750630151930,1.6635,2223.3,2222.6,0.0479233]
[1750630152363,1.7211,2223.2,2222.6,0.0479233]
[1750630152666,1.6635,2223.2,2222.7,10.0]
[1750630152857,1.6635,2223.2,2222.8,0.04498199]
[1750630153635,1.6635,2223.2,2222.8,10.04498199]
[1750630153831,1.6635,2223.2,2222.6,10.1075233]
[1750630154031,1.5362,2225.5,2222.8,0.55]
[1750630154263,0.4536879,2224.7,2223.4,2.162]
[1750630154463,1.5362,2225.5,2224.4,4.49539464]
[1750630154666,1.5362,2225.5,2224.2,10.0]
[1750630154832,1.5362,2225.5,2224.9,0.0567]
[1750630155030,1.5362,2225.5,2225.1,0.0567]
[1750630155292,1.5362,2226.0,2225.1,0.04493224]
[1750630155528,1.5362,2226.0,2225.1,0.45013759]
[1750630155653,1.5362,2226.0,2224.9,10.0]
[1750630156047,1.5362,2226.0,2224.8,0.0567]
[1750630156554,1.5362,2226.0,2224.8,4.55131821]
[1750630156747,1.5362,2226.0,2224.8,0.0567]
[1750630157141,1.5362,2226.0,2225.0,10.0]
[1750630157342,1.5362,2226.0,2224.8,4.55142206]
[1750630157591,1.5362,2226.0,2224.9,10.0]
[1750630158312,1.5362,2226.0,2224.9,14.49457362]
[1750630158599,1.5362,2226.0,2224.9,10.30616752]
[1750630158772,1.5362,2226.0,2225.4,10.0]
[1750630158975,1.5362,2226.0,2225.5,0.04492514]
[1750630159573,1.5362,2226.0,2224.9,10.0]
[1750630159777,1.5362,2226.0,2225.0,0.04493245]
[1750630160117,1.5362,2226.0,2224.8,0.4960278]
[1750630160316,1.5362,2226.0,2225.0,10.30616752]
[1750630160616,1.5362,2226.0,2225.2,10.0]
[1750630160816,1.5362,2226.0,2225.3,0.04492783]
[1750630160982,1.5362,2226.0,2225.1,19.3447]
[1750630160983,1.5362,2226.0,2225.1,14.55072439]
[1750630161311,1.5362,2226.0,2224.9,10.0]
[1750630161687,1.5362,2226.0,2224.7,0.0567]
[1750630161999,10.801,2226.1,2224.2,1.351504]
[1750630162000,1.6587,2225.4,2224.2,1.351504]
[1750630162333,1.6587,2225.0,2223.4,4.55413493]
[1750630162486,12.3761,2224.9,2223.8,1.351504]
[1750630162681,1.5216,2224.8,2223.8,1.351504]
[1750630163078,0.0565,2224.5,2222.9,4.4984894]
[1750630163284,0.0565,2224.2,2222.9,1.352256]
[1750630163521,1.557,2224.1,2222.8,4.49878698]
[1750630163813,1.557,2224.1,2223.0,1.352134]
[1750630164012,1.557,2224.1,2222.6,0.0479233]
[1750630164218,1.557,2224.0,2222.6,0.0479233]
[1750630164425,1.6135,2224.0,2222.6,1.4003013]
[1750630164643,1.557,2223.4,2222.6,0.0479233]
[1750630164919,1.557,2223.1,2222.6,0.0479233]
[1750630165120,1.557,2223.0,2221.1,0.0567]
[1750630165319,0.0565,2222.8,2221.4,1.352685]
[1750630165536,1.557,2222.9,2222.5,10.30616752]
[1750630165724,0.0565,2224.3,2222.6,10.0567]
[1750630165895,10.30616752,2223.8,2221.9,13.80819478]
[1750630166096,0.0565,2223.7,2221.9,0.0567]
[1750630166413,0.0565,2223.7,2222.0,10.0]
[1750630166611,0.0565,2223.7,2222.1,0.04499486]
[1750630166818,0.0565,2223.7,2222.2,4.49996652]
[1750630167020,9.249,2223.9,2222.4,10.55]
[1750630167219,4.689,2224.4,2223.0,10.0]
[1750630167220,0.0565,2224.3,2223.0,10.0]
[1750630167420,0.0565,2224.3,2223.1,0.04497803]
[1750630167605,0.0565,2224.3,2222.8,10.0567]
[1750630167933,0.0565,2224.3,2222.6,0.44419406]
[1750630168137,0.55,2224.3,2222.4,0.0567]
[1750630168303,0.0565,2224.2,2222.4,0.0567]
[1750630168505,0.0565,2224.2,2222.4,0.10168673]
[1750630168808,1.557,2224.1,2222.6,0.0567]
[1750630169208,1.557,2223.9,2222.0,10.30616752]
[1750630169505,1.557,2223.9,2222.1,0.0567]
[1750630169711,1.557,2223.7,2222.2,0.04498795]
[1750630170231,1.557,2223.7,2222.2,0.04498796]
[1750630170405,1.557,2223.7,2222.1,10.0567]
[1750630170739,1.557,2223.7,2222.5,14.55608325]
[1750630170933,1.557,2223.7,2222.5,10.0567]
[1750630171106,1.557,2223.7,2222.7,10.0]
[1750630171432,1.557,2223.7,2222.5,0.0567]
[1750630171433,1.557,2223.7,2222.5,10.0567]
[1750630171605,1.557,2223.7,2222.5,4.55610867]
[1750630172341,1.557,2223.7,2222.5,0.0567]
[1750630172543,1.6135,2223.6,2222.2,0.44694323]
[1750630172751,1.557,2223.4,2222.1,0.0567]
[1750630173071,1.557,2223.4,2221.7,8.5127]
[1750630173209,1.557,2223.2,2221.8,10.0]
[1750630173411,4.575,2223.1,2221.4,2.890085]
[1750630173607,1.557,2222.9,2221.4,2.890085]
[1750630173910,0.0565,2223.0,2221.4,1.81156592]
[1750630173911,1.6601,2222.8,2221.4,1.81156592]
[1750630174100,1.7166,2222.7,2221.4,0.45888092]
[1750630174318,1.7166,2222.7,2221.3,5.85486751]
[1750630174520,1.7166,2222.7,2221.4,0.04500763]
[1750630174741,1.7166,2222.7,2221.3,1.80584344]
[1750630175249,1.6601,2222.6,2221.3,0.45270844]
[1750630175454,1.7166,2222.5,2221.1,0.0567]
[1750630175759,1.6601,2222.5,2221.9,0.0567]
[1750630175957,1.6601,2222.9,2222.1,10.0]
[1750630176256,1.6601,2222.9,2222.1,14.50020369]
[1750630176854,1.6601,2222.9,2222.1,0.44288655]
[1750630177015,1.6601,2222.9,2221.9,0.0567]
[1750630177221,1.6163,2223.6,2222.2,10.85616752]
[1750630177421,1.6163,2223.6,2222.4,0.55]
[1750630177621,1.6163,2223.6,2222.8,4.49866611]
[1750630177942,1.6163,2223.6,2222.7,10.0567]
[1750630178258,4.461,2224.1,2223.1,0.0567]
[1750630178259,1.5305,2224.0,2223.1,0.0567]
[1750630178421,1.5305,2224.0,2222.8,1.6515]
[1750630178422,1.5305,2224.0,2222.7,0.0567]
[1750630178618,1.5305,2224.0,2223.0,10.0]
[1750630178845,1.5305,2224.0,2223.2,10.0]
[1750630179170,1.5305,2224.0,2222.9,4.49862674]
[1750630179726,1.5305,2224.0,2223.1,10.0]
[1750630180026,1.5305,2224.0,2223.2,0.04497261]
[1750630180234,1.5305,2224.0,2223.1,10.0567]
[1750630180428,1.5305,2224.0,2223.2,0.0449726]
[1750630181241,1.5305,2224.0,2223.1,0.0567]
[1750630182266,1.5305,2224.0,2223.1,0.1016726]
[1750630182552,1.572,2224.5,2224.3,10.0]
[1750630182726,1.572,2224.5,2224.4,0.04495012]
[1750630182919,1.572,2224.5,2223.2,0.0567]
[1750630183120,1.572,2224.5,2223.6,10.0]
[1750630183320,1.572,2224.5,2223.5,0.0567]
[1750630183572,1.572,2224.5,2223.9,10.0]
[1750630183868,1.572,2224.5,2223.5,0.0567]
[1750630183869,1.572,2224.5,2223.8,14.49667653]
[1750630184072,1.572,2224.5,2223.9,4.49658711]
[1750630184374,1.572,2224.5,2223.8,10.0]
[1750630184375,1.572,2224.5,2224.0,0.04495454]
[1750630184535,1.5649,2225.5,2224.2,10.0]
[1750630184720,1.5649,2225.5,2224.3,0.10184852]
[1750630184921,1.5649,2225.5,2224.3,10.10184852]
[1750630185122,1.6233,2226.3,2224.7,11.5685]
[1750630185324,1.6233,2226.3,2225.1,0.55]
[1750630185666,0.0609,2226.2,2224.7,0.0569]
[1750630185829,1.5566,2226.1,2224.8,0.04493759]
[1750630186030,1.5566,2226.1,2224.7,0.0569]
[1750630186527,1.5336,2225.9,2224.7,0.44062991]
[1750630186729,1.5945,2225.7,2224.3,0.0569]
[1750630187419,1.5336,2225.7,2224.5,4.4952355]
[1750630187621,1.6271,2225.6,2224.3,0.51053328]
[1750630187825,1.6271,2225.6,2224.4,0.04494811]
[1750630188063,1.6271,2225.6,2224.3,10.51053328]
[1750630188660,1.6271,2225.6,2224.3,5.0063244]
[1750630188821,1.6271,2225.6,2224.7,10.0]
[1750630189027,1.6271,2225.6,2225.0,10.0]
[1750630189259,1.6271,2225.6,2224.9,4.49444992]
[1750630189260,1.5142,2226.6,2225.3,4.49364496]
[1750630189502,1.5142,2226.6,2225.7,10.55]
[1750630189972,1.5142,2226.6,2225.6,14.84960835]
[1750630189973,1.5142,2226.6,2225.6,10.35646752]
[1750630190195,1.5142,2226.6,2225.7,10.0]
[1750630190346,1.5142,2226.6,2225.8,4.53755446]
[1750630190675,1.5142,2226.6,2226.1,10.0]
[1750630190856,1.6398,2227.0,2226.1,14.49203123]
[1750630191057,0.0609,2226.9,2225.7,0.0503]
[1750630191242,1.6398,2226.8,2225.4,4.4935484]
[1750630191442,5.9878,2226.8,2225.4,5.04357189]
[1750630191680,5.9878,2226.8,2225.3,0.50046872]
[1750630191891,5.9878,2226.8,2225.3,0.0503]
[1750630192178,1.6398,2226.8,2225.4,10.04492345]
[1750630192485,1.6398,2226.8,2225.3,0.50100865]
[1750630192780,1.5121,2226.6,2225.3,0.45070865]
[1750630192984,1.5121,2226.6,2224.9,10.35646752]
[1750630193147,1.573,2226.5,2224.9,0.50609301]
[1750630193476,13.24,2226.4,2224.9,0.50609301]
[1750630193667,1.5121,2226.2,2224.9,0.50609301]
[1750630193876,1.5121,2226.2,2225.0,10.35109763]
[1750630194077,1.5121,2226.2,2224.9,10.50609301]
[1750630194447,1.5121,2226.2,2225.0,0.0449273]
[1750630194651,1.5121,2226.2,2225.3,10.0]
[1750630194844,1.5121,2226.2,2225.4,0.0449273]